bitfinex/quotes_ETHUSD_20250708
["timestamp","ask_amount","ask_price","bid_price","bid_amount"]
[1752018046424,1.06615361,2620.0,2619.9,10.80678623]
[1752018051344,1.06615361,2620.0,2619.9,4.00733957]
[1752018051546,1.06615361,2620.0,2619.9,9.81533957]
[1752018051758,1.87685361,2620.0,2619.4,3.81766816]
[1752018051958,1.87685361,2620.0,2619.6,4.00770723]
[1752018052160,1.87685361,2620.0,2619.7,5.809]
[1752018052459,3.16793244,2620.0,2619.7,5.809]
[1752018053161,3.16793244,2620.0,2619.7,9.62617258]
[1752018053362,1.87685361,2620.0,2619.7,9.62617258]
[1752018053859,1.87685361,2620.0,2619.7,5.809]
[1752018054356,1.87685361,2620.0,2619.8,5.809]
[1752018054566,1.87685361,2620.0,2619.6,4.00770817]
[1752018054745,0.8248,2619.9,2619.7,5.808]
[1752018056438,0.8248,2619.9,2619.8,5.808]
[1752018056662,2.49898397,2619.9,2619.8,5.808]
[1752018058169,0.8248,2619.9,2619.8,5.808]
[1752018059477,0.8248,2619.9,2619.8,9.62508527]
[1752018062050,1.06615361,2620.0,2619.9,13.81693957]
[1752018066396,1.06615361,2620.0,2619.9,14.61693957]
[1752018067861,1.06615361,2620.0,2619.9,13.81793957]
[1752018068504,1.06615361,2620.0,2619.9,16.15824298]
[1752018072626,1.06615361,2620.0,2619.9,16.95824298]
[1752018072794,1.06615361,2620.0,2619.9,16.15824298]
[1752018084920,1.06615361,2620.0,2619.9,17.74014298]
[1752018089358,0.25,2620.1,2620.0,13.81679389]
[1752018089579,0.25,2620.1,2620.0,23.65008637]
[1752018096572,0.25,2620.1,2620.0,24.44108637]
[1752018096940,0.25,2620.1,2620.0,25.24108637]
[1752018100055,0.25,2620.1,2620.0,19.44708637]
[1752018100254,0.25,2620.1,2620.0,25.23608637]
[1752018107374,0.25,2620.1,2620.0,24.44508637]
[1752018111498,0.25,2620.1,2620.0,24.44608637]
[1752018111662,0.252,2620.1,2620.0,24.44608637]
[1752018126957,0.252,2620.1,2620.0,14.80819389]
[1752018127160,0.252,2620.1,2620.0,10.59619389]
[1752018127331,0.252,2620.1,2620.0,9.79619389]
[1752018129053,0.252,2620.1,2620.0,5.9804]
[1752018131530,1.0574,2620.1,2620.0,5.79]
[1752018131730,1.41507825,2620.1,2620.0,0.001]
[1752018131932,1.41507825,2620.1,2620.0,5.79]
[1752018132228,1.0574,2620.1,2620.0,5.79]
[1752018132463,1.4150049,2620.1,2620.0,5.79]
[1752018133567,1.41493491,2620.1,2620.0,5.79]
[1752018134150,1.0574,2620.1,2620.0,5.79]
[1752018138168,1.41477852,2620.1,2620.0,5.79]
[1752018138463,1.0574,2620.1,2620.0,5.79]
[1752018138756,1.41474501,2620.1,2620.0,5.79]
[1752018139766,0.252,2620.1,2620.0,27.83506071]
[1752018139969,0.252,2620.1,2620.0,27.98729278]
[1752018140335,0.252,2620.1,2620.0,28.78729278]
[1752018143177,0.002,2620.1,2620.0,28.78729278]
[1752018145491,0.002,2620.1,2620.0,22.99829278]
[1752018145653,0.002,2620.1,2620.0,28.78629278]
[1752018146368,0.002,2620.1,2620.0,21.78743351]
[1752018156630,0.002,2620.1,2620.0,21.00533351]
[1752018162927,0.002,2620.1,2620.0,20.59519389]
[1752018163117,0.002,2620.1,2620.0,10.59519389]
[1752018163319,0.002,2620.1,2620.0,20.59519389]
[1752018165484,0.002,2620.1,2620.0,0.9914]
[1752018165639,0.8149,2620.1,2620.0,0.801]
[1752018165844,0.8149,2620.1,2620.0,6.588]
[1752018166076,0.8149,2620.1,2620.0,9.60479389]
[1752018166257,0.8149,2620.1,2620.0,9.79519389]
[1752018170706,0.8149,2620.1,2620.0,4.00819389]
[1752018170910,0.8149,2620.1,2620.0,9.79519389]
[1752018171110,0.8149,2620.1,2620.0,4.00819389]
[1752018171313,0.8149,2620.1,2620.0,9.79519389]
[1752018172325,0.8149,2620.1,2620.0,4.00819389]
[1752018172482,0.8149,2620.1,2620.0,9.79519389]
[1752018173684,0.8149,2620.1,2620.0,4.00819389]
[1752018173926,0.8149,2620.1,2620.0,9.79519389]
[1752018175434,0.8149,2620.1,2620.0,5.788]
[1752018175815,0.8149,2620.1,2620.0,0.001]
[1752018176019,0.8149,2620.1,2620.0,5.788]
[1752018180009,1.29706845,2620.1,2620.0,5.788]
[1752018180538,1.29706845,2620.1,2620.0,0.001]
[1752018180843,1.29706845,2620.1,2620.0,5.788]
[1752018180844,4.98874975,2620.1,2620.0,5.788]
[1752018184923,4.98874975,2620.1,2620.0,0.001]
[1752018189115,12.91874975,2620.1,2620.0,0.001]
[1752018190764,12.56154821,2620.1,2620.0,0.001]
[1752018190942,15.25628959,2620.1,2620.0,0.001]
[1752018192772,15.80628959,2620.1,2620.0,0.001]
[1752018193977,17.17794124,2620.1,2620.0,0.001]
[1752018194276,17.17794124,2620.1,2618.9,4.78572207]
[1752018194277,3.81825124,2619.0,2618.9,0.001]
[1752018194475,3.81825124,2619.0,2618.9,5.788]
[1752018194476,4.47230636,2619.0,2618.9,5.788]
[1752018195277,4.47230636,2619.0,2618.9,0.001]
[1752018195897,7.93,2619.5,2618.9,3.81939703]
[1752018196053,7.93,2619.5,2619.0,0.7514]
[1752018196054,0.3571093,2619.4,2619.0,0.7514]
[1752018196254,0.3571093,2619.3,2619.1,5.789]
[1752018196444,0.3571093,2619.2,2619.1,5.789]
[1752018196645,7.93,2619.5,2619.1,5.789]
[1752018196646,1.17475726,2619.4,2619.1,5.789]
[1752018196982,0.35694202,2619.3,2619.1,5.789]
[1752018197970,0.35694202,2619.3,2619.0,3.81818924]
[1752018198257,0.35694202,2619.3,2619.1,5.79]
[1752018198258,0.90917667,2619.3,2619.1,5.79]
[1752018198595,0.55223465,2619.3,2619.2,5.789]
[1752018211516,0.90936949,2619.3,2619.2,5.789]
[1752018213620,0.90936949,2619.3,2618.9,0.1914]
[1752018213621,0.7541,2619.2,2618.9,0.1914]
[1752018213792,3.81825124,2619.0,2618.9,0.001]
[1752018213991,5.35718479,2619.0,2618.9,5.792]
[1752018215095,5.71454952,2619.0,2618.9,5.792]
[1752018216926,5.71454952,2619.0,2618.9,0.001]
[1752018217095,14.03930879,2619.0,2618.9,0.001]
[1752018217305,21.20102476,2619.0,2618.9,0.001]
[1752018217710,21.20402476,2619.0,2618.9,0.001]
[1752018219309,15.41102476,2619.0,2618.9,0.001]
[1752018219500,19.83330879,2619.0,2618.9,0.001]
[1752018220037,14.03930879,2619.0,2618.9,0.001]
[1752018220199,19.83330879,2619.0,2618.9,0.001]
[1752018220397,7.04044952,2619.0,2618.9,0.001]
[1752018220599,5.71454952,2619.0,2618.9,0.001]
[1752018222430,6.26454952,2619.0,2618.9,0.001]
[1752018224337,7.05824952,2619.0,2618.9,0.001]
[1752018227630,14.98824952,2619.0,2618.9,0.001]
[1752018227934,16.35880161,2619.0,2618.9,0.001]
[1752018228139,14.98824952,2619.0,2618.9,0.001]
[1752018230131,14.98781503,2619.0,2618.9,0.001]
[1752018232413,14.43781503,2619.0,2618.9,0.001]
[1752018232609,0.35693024,2619.0,2618.9,0.001]
[1752018232948,0.35693024,2619.0,2618.9,0.7834]
[1752018234547,0.35693024,2619.0,2618.9,0.001]
[1752018234548,4.17518148,2619.0,2618.9,0.001]
[1752018238250,0.35693024,2619.0,2618.9,0.001]
[1752018239743,4.17518148,2619.0,2618.9,0.001]
[1752018239951,5.07681082,2619.0,2618.9,0.001]
[1752018247079,1.25855958,2619.0,2618.9,0.001]
[1752018248470,0.1904,2618.9,2618.8,0.001]
[1752018248662,1.92133629,2618.9,2618.5,4.37046219]
[1752018248868,1.92133629,2618.9,2618.4,0.1914]
[1752018249067,1.92133629,2618.9,2618.3,5.793]
[1752018249377,1.92133629,2618.9,2618.4,13.81912618]
[1752018249378,1.7165423,2618.5,2618.4,13.81912618]
[1752018249584,1.7165423,2618.5,2618.4,3.81912618]
[1752018249784,1.7165423,2618.5,2618.4,4.3658649]
[1752018250157,0.1904,2618.9,2618.5,3.81897099]
[1752018250355,0.1904,2618.9,2618.6,0.35633872]
[1752018250750,0.1904,2618.9,2618.7,0.35633872]
[1752018250950,0.1904,2618.9,2618.8,0.35633872]
[1752018253779,0.1904,2619.2,2618.9,3.81832128]
[1752018253985,0.1904,2619.2,2619.0,0.35633872]
[1752018254281,0.1904,2619.2,2619.1,0.35633872]
[1752018256001,0.1904,2619.2,2619.1,0.71259692]
[1752018256774,0.1904,2619.3,2619.1,0.71259692]
[1752018256975,4.00822052,2619.3,2619.2,0.71259692]
[1752018257176,1.76597443,2619.3,2619.2,0.71259692]
[1752018258773,0.96273299,2619.3,2619.2,0.71259692]
[1752018258994,0.1904,2619.3,2619.2,0.71259692]
[1752018261212,0.1904,2619.3,2619.2,5.3239566]
[1752018261375,5.72481901,2619.8,2619.3,3.81781391]
[1752018261578,1.37396657,2619.7,2619.4,4.53023664]
[1752018261796,1.37396657,2619.7,2619.5,0.71259692]
[1752018261984,1.37396657,2619.7,2619.6,0.7125001]
[1752018262687,0.8772046,2619.7,2619.6,0.7125001]
[1752018263001,1.45341096,2619.8,2619.6,0.7125001]
[1752018263173,0.60690516,2619.7,2619.4,3.81763972]
[1752018263375,0.60690516,2619.7,2619.5,0.71219386]
[1752018263581,0.60690516,2619.7,2619.6,0.71219386]
[1752018263806,0.35852669,2619.7,2619.6,0.71219386]
[1752018264310,4.17575767,2619.7,2619.6,0.71219386]
[1752018264811,4.31188371,2619.7,2619.6,0.71219386]
[1752018266920,0.1904,2619.6,2619.3,5.792]
[1752018267420,0.1904,2619.6,2619.3,9.6098099]
[1752018268925,0.1904,2619.6,2619.3,5.792]
[1752018269217,0.35714388,2619.5,2619.3,9.60979957]
[1752018269425,0.1904,2619.6,2619.3,9.60979957]
[1752018270992,0.35706667,2619.5,2619.3,9.60979957]
[1752018271394,0.35706667,2619.5,2619.3,5.792]
[1752018272898,0.35706667,2619.5,2619.3,9.60978057]
[1752018273217,0.1904,2619.6,2619.3,9.60978057]
[1752018273529,0.35702065,2619.5,2619.3,9.60978057]
[1752018274323,0.35702065,2619.5,2619.4,3.81766816]
[1752018275127,0.1904,2619.6,2619.4,3.81766816]
[1752018277695,0.1904,2619.6,2619.5,3.81752242]
[1752018277848,0.002,2619.9,2619.8,3.81708527]
[1752018278182,0.002,2619.9,2619.8,4.62138527]
[1752018278338,0.002,2619.9,2619.8,4.81178527]
[1752018278786,0.002,2619.9,2619.8,6.95347059]
[1752018279079,0.002,2619.9,2619.8,6.99164144]
[1752018279641,0.002,2619.9,2619.8,6.95347059]
[1752018279870,0.002,2619.9,2619.8,0.9947]
[1752018280171,0.002,2619.9,2619.8,0.1904]
[1752018281066,0.3588267,2619.9,2619.8,0.1904]
[1752018281537,0.3588267,2619.9,2619.8,4.00748527]
[1752018285608,0.3588267,2619.9,2619.8,0.1904]
[1752018285790,0.3588267,2619.9,2619.7,10.57366767]
[1752018285964,0.3568267,2619.8,2619.7,10.57366767]
[1752018287366,0.3568267,2619.8,2619.7,9.79656767]
[1752018288305,0.3568267,2619.8,2619.7,5.9794]
[1752018289206,0.3568267,2619.8,2619.7,9.79663098]
[1752018290268,0.3568267,2619.8,2619.7,5.9794]
[1752018290871,0.3568267,2619.8,2619.7,5.789]
[1752018297893,0.35483466,2619.8,2619.7,5.789]
[1752018298079,0.35483466,2619.8,2619.7,5.78697463]
[1752018298282,0.35483466,2619.8,2619.7,5.787]
[1752018298481,1.25611844,2619.8,2619.7,5.787]
[1752018298905,0.35483466,2619.8,2619.7,6.5868]
[1752018299107,0.35483466,2619.8,2619.7,6.7772]
[1752018301280,0.35483466,2619.8,2619.7,10.59443098]
[1752018305701,0.35483466,2619.8,2619.7,20.59443098]
[1752018306431,0.35483466,2619.8,2619.7,23.73549541]
[1752018311237,0.35483466,2619.8,2619.7,17.94849541]
[1752018311416,0.35483466,2619.8,2619.7,23.73849541]
[1752018311735,0.002,2619.9,2619.8,13.81708527]
[1752018312141,0.002,2619.9,2619.8,14.00748527]
[1752018312636,0.002,2619.9,2619.8,5.9804]
[1752018313039,0.002,2619.9,2619.8,0.1904]
[1752018313336,0.002,2619.9,2619.8,5.9804]
[1752018316043,0.002,2619.9,2619.8,9.79748527]
[1752018316551,0.35976825,2619.9,2619.8,9.79748527]
[1752018317048,0.35976825,2619.9,2619.8,10.62208527]
[1752018317254,0.35976825,2619.9,2619.8,13.76590068]
[1752018323350,0.35976825,2619.9,2619.8,9.79748527]
[1752018323949,0.35976825,2619.9,2619.8,5.9804]
[1752018324664,0.35976825,2619.9,2619.8,9.79748527]
[1752018327058,0.35976825,2619.9,2619.8,20.62128527]
[1752018327452,0.002,2619.9,2619.8,20.62128527]
[1752018327648,0.002,2619.9,2619.8,23.06513559]
[1752018331777,0.002,2619.9,2619.8,22.24033559]
[1752018339587,0.06172922,2620.3,2620.2,3.81650255]
[1752018339792,0.7555,2620.4,2620.2,9.60350255]
[1752018340011,0.002,2620.4,2620.3,3.8163569]
[1752018342087,0.002,2620.4,2620.3,6.00554612]
[1752018343512,0.002,2620.4,2620.3,5.96738256]
[1752018344215,0.002,2620.4,2620.3,6.00554612]
[1752018346227,0.002,2620.4,2620.3,5.96738256]
[1752018347330,0.002,2620.4,2620.3,6.00554612]
[1752018348541,0.002,2620.4,2620.3,12.96624183]
[1752018351119,0.002,2620.4,2620.3,5.17738256]
[1752018351340,0.002,2620.4,2620.3,3.85452046]
[1752018353335,0.002,2620.4,2620.3,4.65632046]
[1752018353635,0.002,2620.4,2620.3,4.6181569]
[1752018356343,0.002,2620.4,2620.3,4.6191569]
[1752018358230,0.002,2620.4,2620.3,3.8173569]
[1752018358432,0.002,2620.4,2620.3,5.95913849]
[1752018361551,0.002,2620.4,2620.3,5.82516356]
[1752018361752,0.002,2620.4,2620.3,5.787]
[1752018363114,0.002,2620.4,2620.3,5.788]
[1752018363308,0.7825,2620.4,2620.3,5.79]
[1752018363509,0.7825,2620.4,2620.3,0.001]
[1752018363510,4.59871126,2620.4,2620.3,0.001]
[1752018363714,5.06321491,2620.4,2620.3,5.793]
[1752018364342,5.06321491,2620.4,2620.3,0.001]
[1752018365112,5.42056569,2620.4,2620.3,0.001]
[1752018372254,7.34262171,2620.4,2620.3,0.001]
[1752018372456,5.97056569,2620.4,2620.3,0.001]
[1752018373968,5.97000735,2620.4,2620.3,0.001]
[1752018375774,11.75800735,2620.4,2620.3,0.001]
[1752018377271,5.97000735,2620.4,2620.3,0.001]
[1752018377475,11.75800735,2620.4,2620.3,0.001]
[1752018378746,11.75700735,2620.4,2620.3,0.001]
[1752018384969,5.97000735,2620.4,2620.3,0.001]
[1752018385171,11.75800735,2620.4,2620.3,0.001]
[1752018388253,13.12922677,2620.4,2620.3,0.001]
[1752018391156,13.12970296,2620.4,2620.3,0.001]
[1752018391492,13.13035053,2620.4,2620.3,0.001]
[1752018391668,23.13035053,2620.4,2620.3,0.001]
[1752018392690,24.84497004,2620.4,2620.3,0.001]
[1752018396254,32.77497004,2620.4,2620.3,0.001]
[1752018396867,33.98582931,2620.4,2620.3,0.001]
[1752018397068,39.77382931,2620.4,2620.3,0.001]
[1752018399190,38.0592098,2620.4,2620.3,0.001]
[1752018399373,39.77382931,2620.4,2620.3,0.001]
[1752018399570,37.70176979,2620.4,2620.3,0.001]
[1752018400276,39.4163893,2620.4,2620.3,0.001]
[1752018400461,31.91376979,2620.4,2620.3,0.001]
[1752018400662,37.70176979,2620.4,2620.3,0.001]
[1752018401881,39.4163893,2620.4,2620.3,0.001]
[1752018402086,31.91376979,2620.4,2620.3,0.001]
[1752018402268,39.4186208,2620.4,2620.3,0.001]
[1752018402669,39.4186208,2620.4,2620.3,1e-08]
[1752018402890,37.70176979,2620.4,2620.3,1e-08]
[1752018403296,39.99145596,2620.4,2620.3,1e-08]
[1752018403981,4.36723098,2619.7,2619.6,0.001]
[1752018404175,4.72492449,2619.7,2619.6,0.001]
[1752018404772,0.35769351,2619.7,2619.6,0.001]
[1752018405378,0.35769351,2619.8,2619.6,0.001]
[1752018405702,0.35769351,2619.7,2619.6,0.001]
[1752018406394,0.35769351,2619.8,2619.6,0.001]
[1752018406600,0.35769351,2619.7,2619.6,0.001]
[1752018406895,0.35769351,2619.8,2619.6,0.001]
[1752018407105,0.35769351,2619.7,2619.6,0.001]
[1752018409393,0.35769351,2619.8,2619.6,0.001]
[1752018409579,0.35769351,2619.7,2619.6,0.001]
[1752018409781,0.35769351,2619.8,2619.6,0.001]
[1752018409981,0.35769351,2619.7,2619.6,0.001]
[1752018410298,0.35769351,2619.8,2619.6,0.001]
[1752018410492,0.35769351,2619.7,2619.6,0.001]
[1752018410996,0.35769351,2619.8,2619.6,0.001]
[1752018411203,0.35769351,2619.7,2619.6,0.001]
[1752018412415,0.35769351,2619.8,2619.6,0.001]
[1752018412622,0.35769351,2619.7,2619.6,0.001]
[1752018412785,0.35769351,2619.8,2619.6,0.001]
[1752018412991,0.35769351,2619.7,2619.6,0.001]
[1752018414589,0.35769351,2619.8,2619.6,0.001]
[1752018414894,0.35769351,2619.7,2619.6,0.001]
[1752018415810,0.35769351,2619.8,2619.6,0.001]
[1752018416008,0.35769351,2619.7,2619.6,0.001]
[1752018417923,0.35769351,2619.8,2619.6,0.001]
[1752018418083,0.35769351,2619.7,2619.6,0.001]
[1752018418427,0.35769351,2619.8,2619.6,0.001]
[1752018418587,0.35769351,2619.7,2619.6,0.001]
[1752018418916,0.35769351,2619.8,2619.6,0.001]
[1752018419098,0.35769351,2619.7,2619.6,0.001]
[1752018419413,0.35769351,2619.8,2619.6,0.001]
[1752018419608,0.35769351,2619.7,2619.6,0.001]
[1752018420192,0.35769351,2619.8,2619.6,0.001]
[1752018420523,0.35769351,2619.7,2619.6,0.001]
[1752018420733,0.35769351,2619.8,2619.6,0.001]
[1752018420935,0.35769351,2619.7,2619.6,0.001]
[1752018421087,0.35769351,2619.8,2619.6,0.001]
[1752018421431,0.35769351,2619.7,2619.6,0.001]
[1752018422097,0.35769351,2619.8,2619.6,0.001]
[1752018422687,0.35769351,2619.8,2619.6,0.1914]
[1752018422886,0.35769351,2619.8,2619.7,3.81723098]
[1752018423718,0.35769351,2619.9,2619.7,3.81723098]
[1752018424484,1.006,2620.1,2619.6,5.9794]
[1752018424735,3.81704066,2619.9,2619.6,5.789]
[1752018426323,0.35787205,2619.8,2619.6,5.789]
[1752018426623,0.35787187,2619.7,2619.6,5.789]
[1752018427194,0.35787187,2619.7,2619.6,0.001]
[1752018428921,5.52800285,2619.7,2619.6,0.001]
[1752018429121,19.1348229,2619.7,2619.6,0.001]
[1752018430031,24.9228229,2619.7,2619.6,0.001]
[1752018430210,26.63894978,2619.7,2619.6,0.001]
[1752018431228,24.9228229,2619.7,2619.6,0.001]
[1752018432014,24.9225896,2619.7,2619.6,0.001]
[1752018432501,26.63791662,2619.7,2619.6,0.001]
[1752018433305,26.63791662,2619.7,2619.6,1e-08]
[1752018433810,24.9225896,2619.7,2619.6,1e-08]
[1752018434405,26.63670854,2619.7,2619.6,1e-08]
[1752018438198,26.63541804,2619.7,2619.6,1e-08]
[1752018440619,28.77741804,2619.7,2619.6,1e-08]
[1752018440816,34.56641804,2619.7,2619.6,1e-08]
[1752018441804,14.36737669,2619.6,2619.5,1e-08]
[1752018442012,32.75970179,2619.6,2619.5,1e-08]
[1752018446359,4.36825124,2619.0,2618.6,0.001]
[1752018446555,21.57164793,2618.7,2618.6,0.001]
[1752018446722,27.71731832,2618.7,2618.6,0.001]
[1752018447056,29.3283725,2618.7,2618.6,0.001]
[1752018447626,29.3283725,2618.7,2618.6,1e-08]
[1752018447823,29.3283725,2618.7,2617.9,0.001]
[1752018447824,14.36927204,2618.3,2617.9,0.001]
[1752018448045,28.26790008,2618.3,2617.9,0.001]
[1752018448350,14.3695638,2618.1,2617.9,0.001]
[1752018448555,20.1585638,2618.1,2617.9,0.001]
[1752018448752,14.72603912,2618.1,2617.9,0.001]
[1752018448938,13.8195638,2618.1,2617.9,0.001]
[1752018449143,19.9650163,2618.1,2617.9,0.001]
[1752018449443,19.6085638,2618.1,2617.9,0.001]
[1752018449848,19.96484573,2618.1,2617.9,0.001]
[1752018450186,0.35628077,2618.1,2617.9,0.001]
[1752018450322,9.96584457,2618.1,2617.9,0.001]
[1752018451352,4.17584457,2618.1,2617.9,0.001]
[1752018451647,9.96584457,2618.1,2617.9,0.001]
[1752018452568,9.6095638,2618.1,2617.9,0.001]
[1752018454967,3.8195638,2618.1,2617.9,0.001]
[1752018455158,9.6095638,2618.1,2617.9,0.001]
[1752018455464,12.4453493,2618.1,2617.9,0.001]
[1752018455647,19.99420857,2618.1,2617.9,0.001]
[1752018455843,20.82190857,2618.1,2617.9,0.001]
[1752018456152,21.17783426,2618.1,2617.9,0.001]
[1752018457849,31.17783426,2618.1,2617.9,0.001]
[1752018460472,17.56127499,2618.1,2617.9,0.001]
[1752018460644,30.35113426,2618.1,2617.9,0.001]
[1752018462037,24.56013426,2618.1,2617.9,0.001]
[1752018462242,30.35113426,2618.1,2617.9,0.001]
[1752018463272,17.01127499,2618.1,2617.9,0.001]
[1752018463474,0.35592569,2618.1,2617.9,0.001]
[1752018463776,9.96648949,2618.1,2617.9,0.001]
[1752018464553,9.6105638,2618.1,2617.9,0.001]
[1752018464754,5.791,2618.1,2617.9,0.001]
[1752018465051,9.96670626,2618.1,2617.9,0.001]
[1752018465259,6.33754246,2618.1,2617.9,0.001]
[1752018466241,10.15710626,2618.1,2617.9,0.001]
[1752018468879,4.36610626,2618.1,2617.9,0.001]
[1752018469261,10.15710626,2618.1,2617.9,0.001]
[1752018474087,4.36610626,2618.1,2617.9,0.001]
[1752018474257,4.36610626,2618.1,2617.9,0.7781]
[1752018474585,4.36610626,2618.1,2617.9,0.001]
[1752018477567,5.74101749,2618.1,2617.9,0.001]
[1752018478170,4.36610626,2618.1,2617.9,0.001]
[1752018478568,5.7410064,2618.1,2617.9,0.001]
[1752018478771,4.36610626,2618.1,2617.9,0.001]
[1752018479497,5.74101998,2618.1,2617.9,0.001]
[1752018479882,4.36610626,2618.1,2617.9,0.001]
[1752018480285,0.54654246,2618.1,2617.9,0.001]
[1752018480482,0.54654246,2618.1,2618.0,4.8052158]
[1752018480483,0.35614246,2618.1,2618.0,4.8052158]
[1752018481305,0.35614246,2618.1,2618.0,0.9855061]
[1752018481958,0.35614246,2618.1,2618.0,4.8052158]
[1752018482600,0.002,2618.2,2618.1,3.8195638]
[1752018482900,0.002,2618.2,2618.1,4.5988638]
[1752018482901,0.35977022,2618.2,2618.1,4.5988638]
[1752018483061,0.002,2618.2,2618.1,4.5988638]
[1752018489406,0.002,2618.2,2618.1,4.63705943]
[1752018490173,0.002,2618.2,2618.1,10.42705943]
[1752018490370,0.002,2618.2,2618.1,11.88335348]
[1752018493500,0.002,2618.2,2618.1,5.79]
[1752018495002,0.002,2618.2,2618.1,9.64775943]
[1752018495173,0.002,2618.2,2618.1,10.3925638]
[1752018503508,0.002,2618.2,2618.1,10.5829638]
[1752018504675,0.002,2618.2,2618.1,6.7634]
[1752018504879,0.002,2618.2,2618.1,6.80159563]
[1752018505580,0.002,2618.2,2618.1,5.9804]
[1752018507517,0.002,2618.2,2618.1,5.79]
[1752018510240,0.002,2618.2,2618.1,9.6095638]
[1752018515396,0.002,2618.2,2618.1,5.79]
[1752018518615,0.36017876,2618.2,2618.1,5.79]
[1752018518924,0.002,2618.2,2618.1,5.79]
[1752018519099,0.36017876,2618.2,2618.1,5.79]
[1752018519299,0.002,2618.2,2618.1,5.79]
[1752018519530,0.36017876,2618.2,2618.0,0.2164061]
[1752018519706,3.82142209,2618.2,2618.1,5.789]
[1752018519912,5.02097781,2618.2,2618.0,0.2164061]
[1752018520117,0.84336976,2618.2,2618.1,5.789]
[1752018520321,1.20154316,2618.2,2618.1,5.789]
[1752018522022,0.3601734,2618.2,2618.1,9.6085638]
[1752018522243,0.002,2618.2,2618.1,10.3773638]
[1752018522738,0.36012303,2618.2,2618.1,10.3773638]
[1752018523139,0.002,2618.2,2618.1,10.3773638]
[1752018523546,0.36012303,2618.2,2618.1,10.3773638]
[1752018524214,0.002,2618.2,2618.1,10.3773638]
[1752018525157,0.002,2618.2,2618.1,5.789]
[1752018526244,0.002,2618.2,2618.1,9.6085638]
[1752018530937,0.002,2618.2,2618.1,9.7989638]
[1752018561097,0.002,2618.2,2618.1,19.01502055]
[1752018562488,0.002,2618.2,2618.1,29.01502055]
[1752018562883,0.002,2618.2,2618.1,29.30760139]
[1752018566926,1e-08,2618.2,2618.1,29.49599214]
[1752018567803,1e-08,2618.2,2618.1,30.04599214]
[1752018573687,1e-08,2618.2,2618.1,34.06899214]
[1752018573892,1e-08,2618.2,2618.1,30.04599214]
[1752018576029,1e-08,2618.2,2618.1,24.25699214]
[1752018576229,1e-08,2618.2,2618.1,30.04099214]
[1752018576601,1e-08,2618.2,2618.1,24.25699214]
[1752018576924,1e-08,2618.2,2618.1,19.30260139]
[1752018577229,1e-08,2618.2,2618.1,13.51860139]
[1752018577398,1e-08,2618.2,2618.1,29.30260139]
[1752018581598,1e-08,2618.2,2618.1,15.74304212]
[1752018581805,1e-08,2618.2,2618.1,21.52704212]
[1752018581999,1e-08,2618.2,2618.1,21.23446128]
[1752018582921,1e-08,2618.2,2618.1,15.45046128]
[1752018583220,1e-08,2618.2,2618.1,4.0099638]
[1752018583404,1e-08,2618.2,2618.1,9.7939638]
[1752018586126,0.77480001,2618.2,2618.1,0.1904]
[1752018586326,0.77480001,2618.2,2618.1,5.9744]
[1752018592904,0.77480001,2618.2,2618.1,9.7939638]
[1752018597033,0.77480001,2618.2,2618.1,4.0099638]
[1752018597362,0.77480001,2618.2,2617.8,0.001]
[1752018597363,14.6010556,2617.9,2617.8,0.001]
[1752018597667,2.69731653,2617.9,2617.8,0.001]
[1752018597830,6.74377016,2617.9,2617.8,0.001]
[1752018598029,4.82765363,2617.9,2617.8,0.001]
[1752018598640,5.37765363,2617.9,2617.8,0.001]
[1752018601953,11.18465363,2617.9,2617.8,0.001]
[1752018602165,11.14645637,2617.9,2617.8,0.001]
[1752018606190,19.07645637,2617.9,2617.8,0.001]
[1752018610584,26.07531564,2617.9,2617.8,0.001]
[1752018610883,36.07531564,2617.9,2617.8,0.001]
[1752018612090,23.26945637,2617.9,2617.8,0.001]
[1752018612384,29.07445637,2617.9,2617.8,0.001]
[1752018613187,23.26945637,2617.9,2617.8,0.001]
[1752018613353,31.78437464,2617.9,2617.8,0.001]
[1752018613888,31.23337464,2617.9,2617.8,0.001]
[1752018615689,32.13974544,2617.9,2617.8,0.001]
[1752018615982,31.78337464,2617.9,2617.8,0.001]
[1752018619291,25.97837464,2617.9,2617.8,0.001]
[1752018619614,20.45317387,2617.9,2617.8,0.001]
[1752018620082,14.64917387,2617.9,2617.8,0.001]
[1752018620284,20.45217387,2617.9,2617.8,0.001]
[1752018620975,2.70891827,2617.9,2617.8,0.001]
[1752018621175,5.805,2617.9,2617.8,0.001]
[1752018622189,3.81977428,2618.0,2617.8,0.001]
[1752018622390,5.805,2617.9,2617.8,0.001]
[1752018623660,9.66305286,2617.9,2617.8,0.001]
[1752018623990,11.0708727,2617.9,2617.8,0.001]
[1752018624761,11.8903727,2617.9,2617.8,0.001]
[1752018625289,12.79773602,2617.9,2617.8,0.001]
[1752018625496,14.17126039,2617.9,2617.8,0.001]
[1752018626861,22.10126039,2617.9,2617.8,0.001]
[1752018631295,22.1034517,2617.9,2617.8,0.001]
[1752018632264,15.74930416,2617.9,2617.8,0.001]
[1752018632479,19.47618706,2617.9,2617.8,0.001]
[1752018634098,19.47718706,2617.9,2617.8,0.001]
[1752018636710,9.85433146,2617.9,2617.8,0.001]
[1752018636899,8.28821578,2617.9,2617.8,0.001]
[1752018637676,8.28821578,2617.9,2617.8,0.1914]
[1752018638002,7.93,2617.9,2617.8,0.1914]
[1752018639014,7.93,2617.9,2617.8,4.01140152]
[1752018641006,7.93,2617.9,2617.8,0.1914]
[1752018641599,9.62156663,2618.1,2617.8,0.1914]
[1752018642910,5.802,2618.1,2617.8,0.1914]
[1752018643109,5.84019726,2618.1,2617.8,0.1914]
[1752018643407,9.65977135,2618.1,2617.8,0.1914]